fUST/lending_fUST_20251109
["ID","MTS","AMOUNT","RATE_DAILY","PERIOD"]
[393452194,1762674648043,-1998.5,0.00029491,2]
[393452195,1762674648053,-500.0,0.00029534,2]
[393452196,1762674648062,-318.81429421,0.00029534,2]
[393452197,1762674648072,-626.0,0.00029534,2]
[393452198,1762674648083,-728.89537113,0.00029544,2]
[393452199,1762674648092,-500.0,0.00029589,2]
[393452200,1762674648101,-626.0,0.00029589,2]
[393452201,1762674648110,-54989.8204376,0.00029634,2]
[393452202,1762674648120,-500.0,0.00029644,2]
[393452203,1762674648129,-626.0,0.00029644,2]
[393452204,1762674648139,-264.95973138,0.00029654,2]
[393452205,1762674648148,-150.0,0.00029673,5]
[393452206,1762674648157,-500.0,0.00029698,2]
[393452207,1762674648167,-626.0,0.00029698,2]
[393452208,1762674648177,-500.0,0.00029753,2]
[393452209,1762674648187,-626.0,0.00029753,2]
[393452210,1762674648196,-500.0,0.00029808,2]
[393452211,1762674648205,-626.0,0.00029808,2]
[393452212,1762674648215,-392.4262314,0.00029821,5]
[393452213,1762674648224,-1000.0,0.00029821,5]
[393452214,1762674648234,-247.37410578,0.00029863,2]
[393452215,1762674648243,-626.0,0.00029863,2]
[393452216,1762674648253,-860.0,0.00029886,2]
[393452217,1762674648262,-784.99001591,0.00029903,5]
[393452218,1762674648271,-626.0,0.00029918,2]
[393452219,1762674648280,-1000.0,0.00029921,5]
[393452220,1762674648289,-626.0,0.00029972,2]
[393452221,1762674648298,-383.8894388,0.0003,11]
[393452222,1762674648308,-500.0,0.0003,11]
[393452223,1762674648318,-626.0,0.00030027,2]
[393452224,1762674648327,-626.0,0.00030082,2]
[393452225,1762674648337,-285.0,0.00030087,2]
[393452226,1762674648346,-626.0,0.00030137,2]
[393452227,1762674648355,-626.0,0.00030191,2]
[393452228,1762674648364,-153.86868024,0.00030221,5]
[393452229,1762674648374,-644.0,0.00030246,2]
[393452230,1762674648384,-701.58932533,0.00030368,5]
[393452231,1762674648393,-960.0,0.00030434,2]
[393452232,1762674648403,-1500.0,0.00030468,5]
[393452233,1762674648413,-628.0,0.00030741,2]
[393452234,1762674648423,-2166.0,0.00030741,2]
[393452235,1762674648432,-151.0,0.00030748,2]
[393452236,1762674648441,-2664.67,0.00030773,2]
[393452237,1762674648450,-319.052788,0.00030773,2]
[393452238,1762674648464,-319.052788,0.00030773,2]
[393452239,1762674648474,-319.052788,0.00030773,2]
[393452240,1762674648484,-319.052788,0.00030773,2]
[393452241,1762674648494,-4039.17,0.000308,7]
[393452242,1762674648506,-54989.8204376,0.00030906,2]
[393452243,1762674648516,-1060.0,0.00030982,2]
[393452244,1762674648525,-161.966426,0.00031,4]
[393452245,1762674648536,-2000.0,0.00031016,5]
[393452246,1762674648546,-277.76250547,0.00031035,30]
[393452247,1762674648555,-500.0,0.0003136,2]
[393452248,1762674648565,-864.0,0.00031361,30]
[393452249,1762674648574,-168.0,0.00031443,2]
[393452250,1762674648583,-784.99001591,0.00031468,6]
[393452251,1762674648592,-153.0,0.00031507,2]
[393452252,1762674648601,-1160.0,0.00031529,2]
[393452253,1762674648610,-2500.0,0.00031564,5]
[393452254,1762674648619,-823.0,0.00031711,2]
[393452255,1762674648633,-3330.84,0.00032055,2]
[393452256,1762674648642,-1260.0,0.00032077,2]
[393452257,1762674648652,-312.0,0.00032087,2]
[393452258,1762674648660,-3021.00640968,0.00032112,5]
[393452259,1762674648670,-5000.0,0.00032403,2]
[393452260,1762674648681,-319.052788,0.00032612,2]
[393452261,1762674648690,-319.052788,0.00032612,2]
[393452262,1762674648700,-319.052788,0.00032612,2]
[393452263,1762674648710,-319.052788,0.00032612,2]
[393452264,1762674648720,-151.0,0.00032612,2]
[393452265,1762674648729,-500.0,0.00032621,2]
[393452266,1762674648739,-500.0,0.00032621,2]
[393452267,1762674648748,-500.0,0.00032621,2]
[393452268,1762674648757,-500.0,0.00032621,2]
[393452269,1762674648767,-500.0,0.00032621,2]
[393452270,1762674648776,-500.0,0.00032621,2]
[393452271,1762674648785,-500.0,0.00032621,2]
[393452272,1762674648794,-500.0,0.00032621,2]
[393452273,1762674648804,-500.0,0.00032621,2]
[393452274,1762674648813,-500.0,0.00032621,2]
[393452275,1762674648822,-500.0,0.00032621,2]
[393452276,1762674648832,-500.0,0.00032621,2]
[393452277,1762674648841,-248.81,0.00032621,2]
[393452278,1762674648851,-1360.0,0.00032625,2]
[393452279,1762674648860,-151.0,0.00032632,31]
[393452280,1762674648870,-319.052788,0.00032632,2]
[393452281,1762674648883,-319.052788,0.00032632,2]
[393452282,1762674648893,-319.052788,0.00032632,2]
[393452283,1762674648903,-319.052788,0.00032632,2]
[393452284,1762674648912,-151.0,0.00032632,2]
[393452285,1762674648922,-685000.0,0.00032632,2]
[393452286,1762674648931,-223.01522946,0.00032673,5]
[393452287,1762674648939,-1161.53,0.000327,2]
[393452288,1762674648948,-1000.0,0.00032876,2]
[393452289,1762674648956,-1000.0,0.00032876,2]
[393452290,1762674648964,-500.0,0.00032876,2]
[393452291,1762674648973,-173.14820829,0.00033,2]
[393452292,1762674648982,-313.30904081,0.00033,2]
[393452293,1762674648991,-785.77500592,0.00033033,7]
[393452294,1762674649000,-1129.21530777,0.00033057,2]
[393452295,1762674649010,-851.19,0.0003315,14]
[393452296,1762674649019,-310.930493,0.00033165,2]
[393452297,1762674649028,-1460.0,0.00033173,2]
[393452298,1762674649038,-228.30079527,0.000332,117]
[393452299,1762674649047,-228.30079524,0.000332,117]
[393452300,1762674649057,-3997.0,0.00033337,2]
[393452301,1762674649066,-500.0,0.00033356,7]
[393452302,1762674649076,-4039.17,0.000334,14]
[393452303,1762674649086,-1000.0,0.00033424,2]
[393452304,1762674649095,-1000.0,0.00033424,2]
[393452305,1762674649105,-500.0,0.00033424,2]
[393452306,1762674649114,-979.35811673,0.000336,2]
[393452307,1762674649124,-446.57763711,0.00033612,2]
[393452308,1762674649134,-158.59354189,0.00033673,5]
[393452309,1762674649143,-851.19,0.00033698,15]
[393452310,1762674649153,-1560.0,0.00033721,2]
[393452311,1762674649162,-628.0,0.00033741,2]
[393452312,1762674649171,-2166.0,0.00033741,2]
[393452313,1762674649181,-1000.0,0.00033972,2]
[393452314,1762674649190,-474.16567368,0.00033972,2]
[393452315,1762674649200,-500.0,0.00033972,2]
[393452316,1762674649210,-493.85,0.00034,120]
[393452317,1762674649221,-150.0,0.00034,5]
[393452318,1762674649231,-339.0,0.00034087,120]
[393452319,1762674649240,-500.0,0.00034178,7]
[393452320,1762674649250,-851.19,0.00034246,16]
[393452321,1762674649259,-1660.0,0.00034269,2]
[393452322,1762674649268,-1161.53,0.000343,14]
[393452323,1762674649278,-1152.0,0.00034356,2]
[393452324,1762674649288,-1000.0,0.00034497,30]
[393452325,1762674649298,-1000.0,0.0003452,2]
[393452326,1762674649307,-500.0,0.0003452,2]
[393452327,1762674649317,-300.91751974,0.00034548,5]
[393452328,1762674649327,-4663.17,0.0003462,2]
[393452329,1762674649336,-851.19,0.00034794,17]
[393452330,1762674649346,-180.0,0.000348,30]
[393452331,1762674649355,-249.14374193,0.000348,30]
[393452332,1762674649364,-1760.0,0.00034817,2]
[393452333,1762674649374,-10186.8858149,0.00034848,2]
[393452334,1762674649383,-7281.7408467,0.00034848,2]
[393452335,1762674649393,-600.74,0.000349,120]
[393452336,1762674649402,-500.0,0.00035,7]
[393452337,1762674649412,-464593.04665652,0.00035,5]
[393452338,1762674649428,-11067.82306735,0.00035,5]
[393452372,1762675530130,-150.0,0.00025172,2]
[393452373,1762675530151,-254.74397036,0.0002651,2]
[393452374,1762675530172,-64.51206369,0.00026964,2]
[393452381,1762675560019,700.0,0.00018,2]
[393452385,1762675598091,-209.39360592,0.00024953,4]
[393452386,1762675598116,-144.97391736,0.00026973,2]
[393452388,1762675639082,-177.0,0.00027172,2]
[393452389,1762675639104,-337.52212052,0.00027686,2]
[393452390,1762675643078,-613.73215662,0.00027686,2]
[393452391,1762675643100,-500.0,0.00027689,60]
[393452392,1762675643121,-300.0,0.00027689,2]
[393452393,1762675643141,-1729.77565556,0.0002769,7]
[393452455,1762675838177,-150.0,0.00024953,4]
[393452457,1762675838186,-150.0,0.00025079,2]
[393452479,1762675840333,-426.1,0.00026974,2]
[393452480,1762675840343,-177.0,0.00027079,2]
[393452481,1762675840353,-1210.66841004,0.00027552,20]
[393452482,1762675840362,-832.34749248,0.00027661,2]
[393452483,1762675840372,-300.0,0.00027689,2]
[393452484,1762675840382,-500.0,0.00027689,60]
[393452485,1762675840392,-10770.22434444,0.0002769,7]
[393452486,1762675840402,-12500.0,0.0002769,7]
[393452487,1762675840412,-177.9035861,0.0002769,2]
[393452488,1762675840422,-361.48226406,0.00027728,2]
[393452489,1762675840444,-500.0,0.00027728,2]
[393452490,1762675840454,-520.99307007,0.00027728,2]
[393452491,1762675840465,-243.74611391,0.00027728,2]
[393452492,1762675840474,-500.0,0.00027728,2]
[393452493,1762675840484,-249.9468802,0.00027728,2]
[393452494,1762675840494,-37702.93625693,0.00027729,2]
[393452495,1762675840507,-2568.13375465,0.00027729,2]
[393452496,1762675840586,-349.2786458,0.00027729,2]
[393452497,1762675840598,-433.33155169,0.00027729,2]
[393452498,1762675840626,-892.80800524,0.00027729,2]
[393452512,1762675843182,-1611.63524533,0.00027729,2]
[393452514,1762675843307,-6441.87654036,0.00027729,2]
[393452516,1762675843318,-413.0,0.00027729,2]
[393452518,1762675843327,-500.0,0.0002776,60]
[393452519,1762675843337,-339.35044117,0.0002776,60]
[393452521,1762675843347,-986.0,0.00027761,2]
[393452524,1762675843358,-628.0,0.00027761,2]
[393452525,1762675843368,-2166.0,0.00027761,2]
[393452527,1762675843378,-318.780372,0.00027787,2]
[393452529,1762675843388,-852.21,0.00028258,2]
[393452531,1762675843398,-238.18640868,0.00028338,4]
[393452532,1762675843408,-500.0,0.00028633,5]
[393452533,1762675843417,-204.0,0.00029079,2]
[393452534,1762675843426,-509.01475725,0.00029181,5]
[393452535,1762675843436,-1278.31,0.00029543,2]
[393452536,1762675843445,-420.0,0.00029914,2]
[393452537,1762675843455,-508.65491007,0.0003,11]
[393452538,1762675843465,-283.187,0.00030278,25]
[393452539,1762675843474,-402.71584865,0.00030699,2]
[393452541,1762675843484,-413.0,0.00030729,2]
[393452542,1762675843494,-800.0,0.0003073,2]
[393452543,1762675843504,-986.0,0.00030761,2]
[393452544,1762675843514,-628.0,0.00030761,2]
[393452545,1762675843524,-2166.0,0.00030761,2]
[393452546,1762675843533,-1704.41,0.00030827,2]
[393452548,1762675843543,-231.0,0.00031079,2]
[393452549,1762675843553,-832.34749246,0.00031338,2]
[393452551,1762675843562,-287.76,0.00032102,10]
[393452553,1762675843572,-2130.52,0.00032112,2]
[393452554,1762675843583,-587.0,0.00032317,2]
[393452555,1762675843594,-168.0,0.0003241,2]
[393452556,1762675843604,-168.0,0.00032802,2]
[393452557,1762675843615,-168.0,0.00032814,2]
[393452558,1762675843626,-8298.37913309,0.00032866,2]
[393452559,1762675843639,-289.54641168,0.00032866,2]
[393452564,1762675846674,-253.7425319,0.00032866,2]
[393452615,1762676741091,-154.3623697,0.00019058,2]
[393452616,1762676741112,-150.0,0.00025376,2]
[393452617,1762676741135,-20.60319568,0.00026949,2]
[393452621,1762676817352,1000.0,0.000165,2]
[393452624,1762676830081,-344.49,0.00027041,2]
[393452625,1762676830102,-177.0,0.00027376,2]
[393452626,1762676830122,-986.0,0.00028319,2]
[393452627,1762676830143,-413.0,0.00028319,2]
[393452628,1762676830165,-210.14148858,0.00028329,2]
[393452630,1762676830816,288.611554,0.00013699,2]
[393452674,1762676953077,-288.611554,0.00020187,2]
[393452675,1762676953099,-150.0,0.00020594,2]
[393452676,1762676953119,-275.13025724,0.00021,2]
[393452677,1762676953139,-751.0,0.00021,2]
[393452678,1762676953159,-359.17009241,0.00022,2]
[393452679,1762676953182,-243.41507474,0.00022594,2]
[393452680,1762676953203,-492.75,0.00024132,10]
[393452681,1762676953226,-410.63,0.00024132,10]
[393452682,1762676953248,-300.0,0.00024141,2]
[393452683,1762676953267,-89703.37667515,0.00024142,2]
[393452685,1762676955076,-85937.12637676,0.00024142,2]
[393452687,1762676961087,-21369.77518413,0.00024142,2]
[393452753,1762677032239,-150.0,0.00023662,4]
[393452756,1762677032248,-639.1421548,0.00023901,4]
[393452757,1762677032259,-516.59099624,0.00024142,2]
[393452760,1762677032269,-300.0,0.00024649,2]
[393452762,1762677032278,-23790.82909156,0.0002465,2]
[393452764,1762677032288,-3141.58,0.000247,7]
[393452766,1762677032301,-500.0,0.00024973,2]
[393452768,1762677032311,-1984.41435337,0.00025,2]
[393452770,1762677032322,-33858.84563059,0.00025,2]
[393452772,1762677032333,-7303.94660923,0.00025,2]
[393452774,1762677032342,-346.95591523,0.00025,2]
[393452776,1762677032352,-500.0,0.000258,2]
[393452778,1762677032366,-507.71057593,0.000258,2]
[393452780,1762677032376,-500.0,0.000258,2]
[393452782,1762677032385,-500.0,0.000258,2]
[393452784,1762677032395,-342.19,0.0002599,10]
[393452786,1762677032404,-285.16,0.0002599,10]
[393452788,1762677032413,-526.97634922,0.00026,2]
[393452790,1762677032423,-3983.19617296,0.00026,2]
[393452827,1762677038201,-553.04688047,0.00024999,2]
[393452829,1762677038211,-500.0,0.00024999,2]
[393452831,1762677038222,-588.17943695,0.00024999,2]
[393452833,1762677038232,-538.7471758,0.00024999,2]
[393452836,1762677038242,-3167.88127208,0.00026,2]
[393453063,1762677043275,-8487.33376877,0.00026,2]
[393453069,1762677043333,-436.70567626,0.00026,2]
[393453070,1762677043345,-3824.88310993,0.00026,2]
[393453071,1762677043355,-4372.13505224,0.00026,2]
[393453072,1762677043369,-3105.24376068,0.00026,2]
[393453073,1762677043378,-193.54292733,0.0002616,2]
[393453074,1762677043387,-288.611554,0.00026676,2]
[393453075,1762677043396,-420.0,0.00026713,2]
[393453076,1762677043405,-337.44,0.00026955,2]
[393453077,1762677043415,-150.0,0.0002739,2]
[393453078,1762677043424,-1569.84258658,0.000275,2]
[393453079,1762677043445,-920.38129747,0.000275,2]
[393453080,1762677043456,-350.0,0.000275,2]
[393453082,1762677046509,-1544.999997,0.000275,2]
[393453083,1762677046520,-1098.37612677,0.000275,2]
[393453088,1762677244943,5000.0,0.00019616,4]
[393453089,1762677267153,5000.0,0.00019616,4]
[393453090,1762677289387,5000.0,0.00019616,4]
[393453184,1762677892121,5000.0,0.00018,2]
[393453185,1762677914399,2506.08051764,0.00018,2]
[393453186,1762677933231,-379.73768882,0.00018306,2]
[393453187,1762677933258,-150.0,0.00018399,2]
[393453188,1762677933281,-317.77379996,0.00019058,2]
[393453189,1762677933307,-124.50513877,0.00020399,2]
[393453200,1762678043078,-52.49486123,0.00020399,2]
[393453201,1762678043100,-204.0,0.00022399,2]
[393453202,1762678043122,-231.0,0.00024399,2]
[393453203,1762678043143,-496.8281326,0.00024548,2]
[393453204,1762678043165,-695.0441609,0.00024548,2]
[393453205,1762678043186,-1196.0,0.00025,5]
[393453206,1762678043208,-171.733597,0.00025246,2]
[393453207,1762678043228,-317.77379996,0.00025571,2]
[393453208,1762678043250,-646.0,0.00026574,2]
[393453209,1762678043271,-896.0308076,0.00026772,3]
[393453210,1762678043292,-300.0,0.00026848,2]
[393453211,1762678043453,-6023.39527136,0.0002729,2]
[393453212,1762678043477,-509.11257755,0.00027373,2]
[393453213,1762678043498,-500.0,0.00027373,2]
[393453214,1762678043518,-500.0,0.00027373,2]
[393453215,1762678043539,-485.93024742,0.00027373,2]
[393453216,1762678043560,-502.27,0.0002738,10]
[393453217,1762678043582,-418.55,0.0002738,10]
[393453218,1762678043601,-500.0,0.00027389,2]
[393453219,1762678043624,-225.24220229,0.00027389,2]
[393453220,1762678043645,-70512.95688105,0.0002739,2]
[393453221,1762678050075,-768.17267636,0.00023642,2]
[393453222,1762678050101,-768.17267636,0.00025207,2]
[393453223,1762678050123,-768.17267636,0.00026772,3]
[393453224,1762678050145,-348.8,0.0002738,10]
[393453225,1762678050165,-78862.23412214,0.0002739,2]
[393453286,1762678232423,-282.20574198,0.00027037,2]
[393453293,1762678232476,-97.92425802,0.00027037,2]
[393453295,1762678232486,-4015.59684756,0.000273,2]
[393453297,1762678232495,-300.0,0.00027379,2]
[393453299,1762678232505,-841.06,0.0002738,10]
[393453301,1762678232515,-150.49,0.0002738,10]
[393453303,1762678232525,-752.45,0.0002738,10]
[393453305,1762678232534,-6922.76025488,0.0002738,2]
[393453312,1762678232593,-9057.28357236,0.0002738,2]
[393453365,1762678238284,-412.0,0.0002738,2]
[393453368,1762678238337,-14809.01295629,0.0002738,2]
[393453592,1762678240719,-9487.15139322,0.0002738,2]
[393453887,1762678243623,-14971.22612389,0.0002738,2]
[393453889,1762678243635,-15068.49308427,0.0002738,2]
[393453891,1762678243647,-5906.38673779,0.0002738,2]
[393453893,1762678243656,-500.0,0.00027389,2]
[393453895,1762678243665,-500.0,0.00027389,2]
[393453897,1762678243675,-301.0,0.00027389,2]
[393453899,1762678243684,-500.0,0.00027389,2]
[393453901,1762678243693,-1515.55673445,0.0002739,2]
[393453923,1762678243887,-108.0018475,0.0002739,2]
[393453925,1762678243899,-565.99163167,0.0002739,2]
[393455728,1762678833543,-258.29004669,0.00019058,2]
[393455736,1762679200134,-209.39360592,0.00020002,2]
[393455737,1762679200161,-144.97391736,0.00020103,2]
[393455740,1762679285601,8.09315331,0.00019058,2]
[393455743,1762679353128,-174.81823592,0.00019058,2]
[393455744,1762679353149,-5.02608264,0.00020103,2]
[393455745,1762679353168,-256.25043378,0.00021343,5]
[393455746,1762679353188,-157.86905226,0.00022103,2]
[393455747,1762679353212,-508.29537606,0.00023642,2]
[393455775,1762679432514,-106.73429724,0.00023642,2]
[393455777,1762679432523,-258.29004669,0.00025284,2]
[393455779,1762679432533,-856.27713493,0.00025323,2]
[393455837,1762679438470,-2165.34321067,0.00025323,2]
[393455838,1762679438481,-318.2612992,0.00025431,2]
[393455839,1762679438490,-1010.62597,0.00025449,2]
[393455840,1762679438500,-615.0296733,0.0002599,3]
[393455841,1762679438510,-1000.0,0.00026304,30]
[393455842,1762679438520,-1062.0,0.00026574,2]
[393455843,1762679438530,-319.90622852,0.0002677,2]
[393455844,1762679438539,-300.0,0.00026848,2]
[393455845,1762679438549,-377.14,0.00027072,2]
[393455847,1762679438559,-2677.06456504,0.00027207,2]
[393455849,1762679438569,-225.44,0.000273,2]
[393455852,1762679438589,-192283.09052827,0.000273,2]
[393455855,1762679438604,-2008.97574745,0.000273,2]
[393455857,1762679438616,-308.97747544,0.000273,2]
[393456616,1762679446915,-1482.05380812,0.000273,2]
[393456627,1762679447024,-6600.0,0.000273,2]
[393456740,1762679483782,283.475481,0.00013699,2]
[393456754,1762679820900,500.0,0.00036933,60]
[393456755,1762679821158,405.88618915,0.00036933,60]
[393456785,1762680394529,500.0,0.00036942,60]
[393456786,1762680394739,500.0,0.00036942,60]
[393456787,1762680394963,500.0,0.00036942,60]
[393456788,1762680395192,259.18021492,0.00036942,60]
[393456817,1762680563107,-278.71284974,0.00018958,2]
[393456818,1762680563132,-156.42295311,0.00019008,2]
[393456819,1762680563154,-220.67316362,0.00019058,2]
[393456820,1762680563176,-283.475481,0.00020187,2]
[393456821,1762680563202,-275.13025724,0.00021,2]
[393456822,1762680563225,-751.0,0.00021,2]
[393456823,1762680563256,-359.17009241,0.00022,2]
[393456824,1762680563284,-369.31295919,0.00023642,2]
[393456826,1762680563308,-300.0,0.00024141,2]
[393456827,1762680563331,-1484.42893276,0.00024142,2]
[393456829,1762680570178,-149879.435251,0.00024142,2]
[393456864,1762680631704,-535.06941,0.00023901,4]
[393456865,1762680631714,-300.0,0.00024141,2]
[393456866,1762680631724,-24276.63886815,0.00024142,2]
[393456867,1762680631734,-292.71365394,0.00025215,2]
[393456868,1762680631743,-369.31295919,0.0002599,3]
[393456869,1762680631753,-314.61913683,0.0002602,2]
[393456870,1762680631763,-1475.2467536,0.00026074,2]
[393456871,1762680631772,-420.0,0.00026176,2]
[393456872,1762680631782,-283.475481,0.00026676,2]
[393456873,1762680631792,-1000.0,0.00027,7]
[393456874,1762680631802,-237.27214868,0.00027169,2]
[393456875,1762680631811,-500.0,0.00027169,2]
[393456876,1762680631821,-500.0,0.00027169,2]
[393456877,1762680631830,-500.0,0.00027169,2]
[393456878,1762680631840,-518.01702255,0.00027169,2]
[393456879,1762680631852,-500.0,0.00027169,2]
[393456881,1762680631862,-500.0,0.00027169,2]
[393456882,1762680631871,-225.24220229,0.00027169,2]
[393456884,1762680631881,-500.0,0.00027169,2]
[393456886,1762680631891,-500.0,0.00027169,2]
[393456887,1762680631901,-598.84590934,0.00027169,2]
[393456888,1762680631911,-463.23942145,0.00027169,2]
[393456889,1762680631920,-500.0,0.00027169,2]
[393456890,1762680631930,-500.0,0.00027169,2]
[393456891,1762680631939,-500.0,0.00027169,2]
[393456892,1762680631949,-348.46011175,0.00027169,2]
[393456893,1762680631958,-500.0,0.00027169,2]
[393456894,1762680631968,-500.0,0.00027169,2]
[393456895,1762680631978,-23740.26777918,0.0002717,2]
[393456896,1762680631990,-517.76991107,0.0002717,2]
[393456897,1762680632001,-2119.9520842,0.0002717,2]
[393456945,1762680637677,-281.04,0.0002717,2]
[393456951,1762680637732,-7956.89886063,0.0002717,2]
[393456954,1762680637743,-88975.29942093,0.0002717,2]
[393457120,1762680644501,-33.994,0.0002717,2]
[393457121,1762680644513,-3210.28752487,0.0002717,2]
[393457122,1762680644648,-2913.47731066,0.0002717,2]
[393457123,1762680644660,-99689.00464164,0.0002717,2]
[393457169,1762681558179,-5000.0,0.00022259,4]
[393457170,1762681558200,-2255.18386517,0.00022484,4]
[393457171,1762681558220,-150.0,0.00022826,2]
[393457172,1762681558240,-161.966426,0.00023139,4]
[393457173,1762681558260,-300.0,0.00023641,2]
[393457174,1762681558279,-1200.0,0.00023641,2]
[393457175,1762681558297,-1195.0,0.00023642,2]
[393457176,1762681558316,-376.51483982,0.00023642,2]
[393457177,1762681558336,-224.07279239,0.00024826,2]
[393457178,1762681558355,-174.86438334,0.00025137,2]
[393457179,1762681558373,-220.96565661,0.00025158,2]
[393457180,1762681558392,-349.2786458,0.00025158,2]
[393457181,1762681558410,-505.312985,0.00025434,2]
[393457182,1762681558429,-639.1421548,0.00025467,30]
[393457183,1762681558449,-420.0,0.00025647,2]
[393457184,1762681558468,-1490.4843981,0.00025873,2]
[393457185,1762681558488,-2085.1324829,0.00025873,2]
[393457186,1762681558508,-376.51483982,0.0002599,3]
[393457187,1762681558528,-386.87,0.00026946,2]
[393457188,1762681558547,-3247.45980597,0.0002699,2]
[393457189,1762681558568,-117879.35199969,0.00027,2]
[393457190,1762681596293,500.0,0.00036949,60]
[393457191,1762681596567,500.0,0.00036949,60]
[393457192,1762681596811,500.0,0.00036949,60]
[393457193,1762681597047,500.0,0.00036949,60]
[393457194,1762681597289,500.0,0.00036949,60]
[393457195,1762681597522,500.0,0.00036949,60]
[393457196,1762681597769,500.0,0.00036949,60]
[393457197,1762681598098,500.0,0.00036949,60]
[393457198,1762681598305,500.0,0.00036949,60]
[393457199,1762681598747,500.0,0.00036949,60]
[393457200,1762681599211,500.0,0.00036949,60]
[393457201,1762681599459,500.0,0.00036949,60]
[393457202,1762681599707,500.0,0.00036949,60]
[393457203,1762681599934,500.0,0.00036949,60]
[393457204,1762681600211,257.0937629,0.00036949,60]
[393457220,1762681644095,-1967.73090776,0.00024953,4]
[393457221,1762681644119,-151506.76537324,0.00027,2]
[393457222,1762681645136,-474918.35597907,0.00027,2]
[393457223,1762681645157,-500.0,0.00027065,2]
[393457224,1762681645177,-300.0,0.00027069,2]
[393457225,1762681645195,-6064.49056072,0.0002707,2]
[393457226,1762681645214,-159.38512116,0.00027073,2]
[393457227,1762681645232,-159.38512116,0.00027082,2]
[393457228,1762681645251,-159.38512116,0.00027091,2]
[393457229,1762681645270,-159.38512116,0.000271,2]
[393457230,1762681645291,-500.0,0.00027162,2]
[393457231,1762681645310,-603.85586983,0.00027162,2]
[393457232,1762681645331,-500.0,0.00027162,2]
[393457233,1762681645351,-591.32608459,0.00027162,2]
[393457234,1762681645374,-500.0,0.00027162,2]
[393457235,1762681645394,-500.0,0.00027162,2]
[393457236,1762681645414,-411.76091224,0.00027162,2]
[393457237,1762681645438,-385.30534808,0.00027162,2]
[393457238,1762681645568,-500.0,0.00027162,2]
[393457239,1762681645588,-591.32608459,0.00027162,2]
[393457240,1762681645609,-500.0,0.00027162,2]
[393457241,1762681645630,-500.0,0.00027162,2]
[393457242,1762681645650,-500.0,0.00027162,2]
[393457243,1762681645669,-500.0,0.00027162,2]
[393457244,1762681645688,-591.32608459,0.00027162,2]
[393457245,1762681645708,-274.19310705,0.00027162,2]
[393457246,1762681645728,-500.0,0.00027162,2]
[393457247,1762681645748,-591.32608459,0.00027162,2]
[393457248,1762681645769,-500.0,0.00027162,2]
[393457249,1762681645790,-500.0,0.00027162,2]
[393457250,1762681645810,-286.66774045,0.00027162,2]
[393457251,1762681645831,-591.32608459,0.00027162,2]
[393457252,1762681645851,-500.0,0.00027162,2]
[393457253,1762681645871,-591.32608459,0.00027162,2]
[393457254,1762681645891,-500.0,0.00027162,2]
[393457255,1762681645912,-500.0,0.00027162,2]
[393457256,1762681645931,-591.32608459,0.00027162,2]
[393457257,1762681645951,-591.32608459,0.00027162,2]
[393457258,1762681645970,-500.0,0.00027162,2]
[393457259,1762681645994,-500.0,0.00027162,2]
[393457260,1762681646012,-591.32608459,0.00027162,2]
[393457261,1762681646033,-591.32608459,0.00027162,2]
[393457262,1762681646054,-500.0,0.00027162,2]
[393457263,1762681646073,-591.32608459,0.00027162,2]
[393457264,1762681646093,-591.32608459,0.00027162,2]
[393457265,1762681646116,-500.0,0.00027162,2]
[393457266,1762681646136,-591.32608459,0.00027162,2]